Workbook

Sheet ТИТУЛ
B2: "СОГЛАСОВАНО" | I2: "УТВЕРЖДЕНО"
B3: Начальник | I3: Директор
B4: МУ "Управленио образования" | I4: МБОУ
B5: Исполнительного комитета | I5: ____________________________________
B6: Арского муниципального района РТ | I6: ____________________________________
B7: _________________Р.Д.Мухамадияров | I7: __________________
B9: ПРИМЕРНОЕ МЕНЮ
B11: ОРГАНИЗАЦИИ ГОРЯЧЕГО ПИТАНИЯ УЧАЩИХСЯ 5-11 КЛАССОВ ОБЩЕОБРАЗОВАТЕЛЬНЫХ ШКОЛ
B12: АРСКОГО МУНИЦИПАЛЬНОГО РАЙОНА НА 2 ПОЛУГОДИЕ 2021-2022 УЧЕБНОГО ГОДА

Sheet 1 неделя
B1: "Согласовано" | H1: "Утверждено"
B2: Начальник | H2: Директор
B3: МУ "Управление образования" | H3: МБОУ ________________________
B4: __________________Р.Д.Мухамадияров | H4: ___________________ | I4: (фамилия, инициалы)
B5: М.П. | H5: М.П.
B6: МЕНЮ в столовых общеобразовательных учреждений Арского муниципального района РТ с 5 по 11 класс с 05 по 10 сентября 2022 г
B8: ПЕРВАЯ НЕДЕЛЯ
B9: Наименование продуктов | F9: Выход | G9: Стоимость | H9: Белки | I9: Жиры | J9: Углеводы | K9: Ккал
B10: ПОНЕДЕЛЬНИК
B11: Сыр порционно | F11: 25 | H11: 8.57 | I11: 6.65 | K11: 88
B12: Котлеты мясные с томатным соусом | F12: 80/20 | H12: 10.72 | I12: 11.51 | J12: 10.57 | K12: 187
B13: Каша гречневая рассыпчатая | F13: 180 | H13: 7.94 | I13: 6.47 | J13: 50.24 | K13: 291
B14: Чай с сахаром, лимоном | F14: 200/5 | H14: 0.1 | I14: 0.01 | J14: 8.3 | K14: 38
B15: Хлеб ржано пшеничный | F15: 20 | H15: 1 | I15: 0.2 | J15: 9 | K15: 44
B16: Хлеб пшеничный | F16: 20 | H16: 1.52 | I16: 0.16 | J16: 9.84 | K16: 47
C17: итого | G17: 55.55 | H17: =H11+H12+H13+H14+H15+H16 -> 29.85 | I17: =I11+I12+I13+I14+I15+I16 -> 25 | J17: =J11+J12+J13+J14+J15+J16 -> 87.95 | K17: =K11+K12+K13+K14+K15+K16 -> 695
B18: ВТОРНИК
B19: Плоды свежие (яблоки) | F19: 100 | H19: 0.4 | I19: 0.4 | J19: 9.8 | K19: 47
B20: Салат из свеклы отварной с маслом | F20: 60 | H20: 0.85 | I20: 3.65 | J20: 5.01 | K20: 56
B21: Плов с куриными грудками | F21: 50/200 | H21: 18.21 | I21: 25.67 | J21: 54.82 | K21: 524
B22: Напиток лимонный | F22: 200 | H22: 0.14 | I22: 0.02 | J22: 24.43 | K22: 101
B23: Хлеб ржано пшеничный | F23: 20 | H23: 1 | I23: 0.2 | J23: 9 | K23: 44
B24: Хлеб пшеничный | F24: 20 | H24: 1.52 | I24: 0.16 | J24: 9.84 | K24: 47
C25: итого | G25: 55.55 | H25: =H19+H20+H21+H22+H23+H24 -> 22.12 | I25: =I19+I20+I21+I22+I23+I24 -> 30.1 | J25: =J19+J20+J21+J22+J23+J24 -> 112.9 | K25: =K19+K20+K21+K22+K23+K24 -> 819
B26: СРЕДА
B27: Салат из моркови с яблоками | F27: 60 | H27: 0.59 | I27: 6.08 | J27: 5.27 | K27: 79
B28: Запеканка картофельная с куриными грудками | F28: 180/5 | H28: 15 | I28: 25.12 | J28: 31.15 | K28: 408
B29: Кисель | F29: 200 | J29: 13.1 | K29: 53
B30: Хлеб ржано пшеничный | F30: 20 | H30: 1 | I30: 0.2 | J30: 9 | K30: 44
B31: Хлеб пшеничный | F31: 20 | H31: 1.52 | I31: 0.16 | J31: 9.84 | K31: 47
C32: итого | G32: 55.55 | H32: =H27+H28+H29+H30+H31 -> 18.11 | I32: =I27+I28+I29+I30+I31 -> 31.56 | J32: =J27+J28+J29+J30+J31 -> 68.36 | K32: =K27+K28+K29+K30+K31 -> 631
B33: ЧЕТВЕРГ
B34: Плоды свежие (яблоки) | F34: 100 | H34: 0.4 | I34: 0.4 | J34: 9.8 | K34: 47
B35: Салат из белокачкнной капусты | F35: 60 | H35: 0.93 | I35: 3.05 | J35: 5.64 | K35: 54
B36: Гречка с фаршем и овощами | F36: 180 | H36: 17.95 | I36: 19.23 | J36: 43.12 | K36: 417
B37: Чай с сахаром, лимоном | F37: 200/5 | H37: 0.05 | I37: 0.01 | J37: 8.14 | K37: 34
B38: Хлеб ржано пшеничный | F38: 20 | H38: 1 | I38: 0.2 | J38: 9 | K38: 44
B39: Хлеб пшеничный | F39: 20 | H39: 1.52 | I39: 0.16 | J39: 9.84 | K39: 47
C40: итого | G40: 55.55 | H40: =H34+H35+H36+H37+H38+H39 -> 21.85 | I40: =I34+I35+I36+I37+I38+I39 -> 23.05 | J40: =J34+J35+J36+J37+J38+J39 -> 85.54 | K40: =K34+K35+K36+K37+K38+K39 -> 643
B41: ПЯТНИЦА
B42: Салат из свеклы отварной с маслом | F42: 60 | H42: 0.79 | I42: 3.1 | J42: 6.71 | K42: 59
B43: Фрикадельки мясные в томатном соусе | F43: 80/50 | H43: 10.43 | I43: 16.51 | J43: 13.52 | K43: 244.4
B44: Картофель отварной с маслом | F44: 180/5 | H44: 3.94 | I44: 5.59 | J44: 26.43 | K44: 175
B45: Напиток из шиповника | F45: 200 | H45: 0.01 | J45: 5.09 | K45: 20
B46: Хлеб ржано пшеничный | F46: 20 | H46: 1 | I46: 0.2 | J46: 9 | K46: 44
B47: Хлеб пшеничный | F47: 20 | H47: 1.52 | I47: 0.16 | J47: 9.84 | K47: 47
C48: итого | G48: 55.55 | H48: =H42+H43+H44+H45+H46+H47 -> 17.69 | I48: =I42+I43+I44+I45+I46+I47 -> 25.56 | J48: =J42+J43+J44+J45+J46+J47 -> 70.59 | K48: =K42+K43+K44+K45+K46+K47 -> 589.4
B49: СУББОТА
B50: Сыр порционно | F50: 20 | H50: 5.26 | I50: 5.32 | K50: 71
B51: Котлеты мясные с томатным соусом | F51: 80/20 | H51: 11.82 | I51: 14.2 | J51: 8.08 | K51: 205
B52: макаронные изделия отварные | F52: 180 | H52: 6.77 | I52: 5.36 | J52: 43.13 | K52: 248
B53: компот из сухофруктов | F53: 200 | H53: 0.1 | I53: 0.01 | J53: 8 | K53: 32
B54: Хлеб ржано пшеничный | F54: 20 | H54: 1 | I54: 0.2 | J54: 9 | K54: 44
B55: Хлеб пшеничный | F55: 20 | H55: 1.52 | I55: 0.16 | J55: 9.84 | K55: 47
C56: итого | G56: 55.55 | H56: =H50+H51+H52+H53+H54+H55 -> 26.47 | I56: =I50+I51+I52+I53+I54+I55 -> 25.25 | J56: =J50+J51+J52+J53+J54+J55 -> 78.05 | K56: =K50+K51+K52+K53+K54+K55 -> 647

Sheet 2 неделя
C5: "Согласовано" | I5: "Утверждено"
C6: Начальник | I6: Директор
C7: МУ "Управление образования" | I7: МБОУ
C8: __________________Р.Д.Мухамадияров | I8: _______________ | J8: (фамилия, инициалы)
C9: М.П. | I9: М.П.
C10: МЕНЮ в столовых общеобразовательных учреждений Арского муниципального района РТ с 5 по 11 класс с 12 по 17 сентября 2022 г
C12: ВТОРАЯ НЕДЕЛЯ
C13: Наименование продуктов | G13: Выход | H13: Стоимость | I13: Белки | J13: Жиры | K13: Углеводы | L13: Ккал
C14: Сыр порциями | G14: 25 | I14: 6.58 | J14: 6.65 | L14: 88
C15: Тефтели мясные в соусе томатном | G15: 70/40 | I15: 4.18 | J15: 8.02 | K15: 12.46 | L15: 139
C16: Каша гречневая рассыпчатая | G16: 180 | I16: 7.94 | J16: 6.47 | K16: 50.24 | L16: 291
C17: Чай с сахаром,лимоном | G17: 200/12 | I17: 0.12 | J17: 0.02 | K17: 8.36 | L17: 30
C18: Хлеб ржано-пшеничный | G18: 20 | I18: 1 | J18: 20 | K18: 9 | L18: 44
C19: Хлеб пшеничный | G19: 20 | I19: 1.52 | J19: 16 | K19: 9.84 | L19: 47
E20: Итого: | H20: 55.55 | I20: =I14+I15+I16+I17+I18+I19 -> 21.34 | J20: =J14+J15+J16+J17+J18+J19 -> 57.16 | K20: =K14+K15+K16+K17+K18+K19 -> 89.9 | L20: =L14+L15+L16+L17+L18+L19 -> 639
C21: ВТОРНИК
C22: Плоды свежие (яблоки) | G22: 100 | I22: 0.4 | J22: 0.4 | K22: 9.8 | L22: 47
C23: Салат из моркови с яблоками | G23: 60 | I23: 0.59 | J23: 6.08 | K23: 5.27 | L23: 79
C24: Рагу из куриных грудок | G24: 50/200 | I24: 18.21 | J24: 25.67 | K24: 54.82 | L24: 524
C25: Кисель | G25: 200 | K25: 13.1 | L25: 53
C26: Хлеб ржано-пшеничный | G26: 20 | I26: 1 | J26: 0.2 | K26: 9 | L26: 44
C27: Хлеб пшеничный | G27: 20 | I27: 1.52 | J27: 0.16 | K27: 9.84 | L27: 47
E28: Итого: | H28: 55.55 | I28: =I22+I23+I24+I25+I26+I27 -> 21.72 | J28: =J22+J23+J24+J25+J26+J27 -> 32.51 | K28: =K22+K23+K24+K25+K26+K27 -> 101.83 | L28: =L22+L23+L24+L25+L26+L27 -> 794
C29: СРЕДА
C30: Салат из белокочанной капусты | G30: 60 | I30: 0.93 | J30: 3.05 | K30: 5.65 | L30: 54
C31: Гуляш из говядины | G31: 45/45 | I31: 10.68 | J31: 12.6 | K31: 2.56 | L31: 167
C32: Макаронные изделия отварные | G32: 180 | I32: 6.77 | J32: 5.36 | K32: 43.13 | L32: 248
C33: Чай с сахаром | G33: 200 | I33: 0.01 | J33: 0.01 | K33: 8 | L33: 32
C34: Хлеб ржано-пшеничный | G34: 20 | I34: 1 | J34: 0.2 | K34: 9 | L34: 44
C35: Хлеб пшеничный | G35: 20 | I35: 1.52 | J35: 0.16 | K35: 9.84 | L35: 47
E36: Итого: | H36: 55.55 | I36: =I30+I31+I32+I33+I34+I35 -> 20.91 | J36: =J30+J31+J32+J33+J34+J35 -> 21.38 | K36: =K30+K31+K32+K33+K34+K35 -> 78.18 | L36: =L30+L31+L32+L33+L34+L35 -> 592
C37: ЧЕТВЕРГ
C38: Салат морковный | G38: 60 | I38: 0.79 | J38: 3.1 | K38: 6.71 | L38: 59
C39: Биточки рыб. из минтая(п/ф) с т/с | G39: 100/10 | I39: 15.84 | J39: 7.04 | K39: 7.1 | L39: 154.8
C40: Картофель отварной с маслом | G40: 180 | I40: 3.94 | J40: 5.59 | K40: 26.43 | L40: 175
C41: Напиток из шиповника | G41: 200 | I41: 0.08 | J41: 0.08 | K41: 11.94 | L41: 49
C42: Хлеб ржано-пшеничный | G42: 20 | I42: 1 | J42: 0.2 | K42: 9 | L42: 44
C43: Хлеб пшеничный | G43: 20 | I43: 1.52 | J43: 0.16 | K43: 9.84 | L43: 47
E44: Итого: | H44: 55.55 | I44: =I38+I39+I40+I41+I42+I43 -> 23.17 | J44: =J38+J39+J40+J41+J42+J43 -> 16.17 | K44: =K38+K39+K40+K41+K42+K43 -> 71.02 | L44: =L38+L39+L40+L41+L42+L43 -> 528.8
C45: ПЯТНИЦА
C46: Салат свекольный | G46: 60 | I46: 0.66 | J46: 3.1 | K46: 6.59 | L46: 57
C47: Грудка куриная в т/с | G47: 60/30 | I47: 12.09 | J47: 11.6 | K47: 2.18 | L47: 162
C48: Рис отварной | G48: 180 | I48: 4.6 | J48: 6.52 | K48: 48.01 | L48: 268.8
C49: Кисель | G49: 200 | K49: 13.1 | L49: 53
C50: Хлеб ржано-пшеничный | G50: 20 | I50: 1 | J50: 0.2 | K50: 9 | L50: 44
C51: Хлеб пшеничный | G51: 20 | I51: 1.52 | J51: 0.16 | K51: 9.84 | L51: 47
E52: Итого: | H52: 55.55 | I52: =I46+I47+I48+I49+I50+I51 -> 19.87 | J52: =J46+J47+J48+J49+J50+J51 -> 21.58 | K52: =K46+K47+K48+K49+K50+K51 -> 88.72 | L52: =L46+L47+L48+L49+L50+L51 -> 631.8
C53: СУББОТА
C54: Плоды свежие (яблоки) | G54: 100 | I54: 0.4 | J54: 0.4 | K54: 9.8 | L54: 47
C55: Сыр порциями | G55: 20 | I55: 5.26 | J55: 5.32 | L55: 70
C56: Фрикадельки мясные в т/с | G56: 60/40 | I56: 5.56 | J56: 9.42 | K56: 9.22 | L56: 144
C57: Макаронные изделия отварные | G57: 180 | I57: 6.77 | J57: 5.36 | K57: 43.13 | L57: 248
C58: чай с сахаром,лимоном | G58: 200/8 | I58: 0.08 | J58: 0.02 | K58: 8.24 | L58: 35
C59: Хлеб ржано-пшеничный | G59: 20 | I59: 1 | J59: 0.2 | K59: 9 | L59: 44
C60: Хлеб пшеничный | G60: 20 | I60: 1.52 | J60: 0.16 | K60: 9.84 | L60: 47
E61: Итого: | H61: 55.55 | I61: =I54+I55+I56+I57+I58+I59+I60 -> 20.59 | J61: =J54+J55+J56+J57+J58+J59+J60 -> 20.88 | K61: =K54+K55+K56+K57+K58+K59+K60 -> 89.23 | L61: =L54+L55+L56+L57+L58+L59+L60 -> 635
